bitfinex/quotes_ETHUSD_20240820
["timestamp","ask_amount","ask_price","bid_price","bid_amount"]
[1724122744114,2.3796,2659.1,2658.7,3.93538138]
[1724122747410,6.14027,2659.1,2658.7,0.17423138]
[1724122747616,2.2863,2659.0,2658.7,0.17423138]
[1724122760964,2.2863,2659.0,2658.8,1.272]
[1724122761164,2.2863,2659.0,2658.7,0.17423138]
[1724122761382,2.2863,2659.0,2658.8,0.17412873]
[1724122761585,2.2863,2659.0,2658.6,5.03324]
[1724122761794,2.2863,2659.0,2658.7,0.17419763]
[1724122772368,3.76099,2658.9,2658.7,0.17419763]
[1724122772608,2.3028,2658.8,2658.5,1.272]
[1724122772832,2.3028,2658.8,2658.6,0.17424629]
[1724122780741,2.3028,2658.8,2658.6,0.12424629]
[1724122780925,2.3028,2658.8,2658.6,0.17251748]
[1724122795476,2.3028,2658.8,2658.6,3.93387748]
[1724122799357,2.3028,2658.8,2658.6,0.17251748]
[1724122803906,2.3028,2658.8,2658.6,5.20584748]
[1724122808219,2.2916,2659.1,2659.0,3.76081]
[1724122808450,2.2916,2659.1,2659.0,5.03281]
[1724122808624,2.2916,2659.1,2658.9,3.76093]
[1724122808844,2.2916,2659.1,2658.8,5.03309]
[1724122810032,2.2916,2659.1,2658.8,5.033]
[1724122810444,2.2916,2659.1,2658.8,8.74401]
[1724122810655,2.2916,2659.1,2658.8,3.761]
[1724122811023,2.2916,2659.1,2658.8,7.52202]
[1724122811226,2.2916,2659.1,2658.8,3.761]
[1724122815167,2.2916,2659.1,2658.8,7.52202]
[1724122816965,2.2916,2659.1,2658.9,3.76095]
[1724122817842,2.2916,2659.1,2659.0,0.1722298]
[1724122820086,2.2916,2659.1,2658.8,7.52202]
[1724122820221,2.2916,2659.1,2658.9,0.17229194]
[1724122820422,2.3101,2659.0,2658.7,3.7612]
[1724122820669,2.3101,2659.0,2658.6,5.03327]
[1724122820972,2.3101,2659.0,2658.7,0.17242974]
[1724122821278,2.3101,2659.0,2658.7,3.93362974]
[1724122824465,2.3101,2659.0,2658.8,3.76108]
[1724122824646,2.3101,2659.0,2658.9,0.17230544]
[1724122826648,2.3101,2659.0,2658.9,3.93325544]
[1724122829396,2.30257852,2659.0,2658.9,3.93325544]
[1724122845744,2.30257852,2659.0,2658.9,0.17230544]
[1724122846042,2.30257852,2659.0,2658.7,3.76115]
[1724122846244,2.30257852,2659.0,2658.9,0.17229194]
[1724122846399,2.30257852,2659.0,2658.8,0.17236084]
[1724122846594,2.30257852,2659.0,2658.7,3.76115]
[1724122846838,2.30257852,2659.0,2658.9,0.17229194]
[1724122847039,2.30257852,2659.0,2658.8,0.17236084]
[1724122847254,2.30257852,2659.0,2658.9,0.17229194]
[1724122848043,2.30257852,2659.0,2658.6,7.52256]
[1724122848244,2.30257852,2659.0,2658.9,0.17231219]
[1724122848394,2.30257852,2659.0,2658.6,7.52256]
[1724122848599,2.30257852,2659.0,2658.9,0.17231556]
[1724122849017,2.30257852,2659.0,2658.6,7.52256]
[1724122849216,2.30257852,2659.0,2658.9,0.17231556]
[1724122849439,2.30257852,2659.0,2658.7,3.76122]
[1724122849631,2.30257852,2659.0,2658.9,0.17231556]
[1724122849832,2.30257852,2659.0,2658.8,0.17238446]
[1724122850019,2.30257852,2659.0,2658.7,3.76122]
[1724122850528,2.30257852,2659.0,2658.8,0.17238446]
[1724122853243,2.30257852,2659.0,2658.9,3.76095]
[1724122853452,3.76025,2659.4,2659.0,3.7608]
[1724122853453,2.2763,2659.2,2659.0,3.7608]
[1724122853654,2.2763,2659.2,2659.0,3.76073]
[1724122853818,2.2763,2659.2,2659.1,0.17219129]
[1724122854000,2.2883,2659.6,2659.2,3.76045]
[1724122854204,2.2883,2659.6,2659.1,3.93286129]
[1724122854525,2.2883,2659.6,2659.2,0.1721224]
[1724122854727,2.2883,2659.5,2659.2,0.1721224]
[1724122857663,6.04852,2659.5,2659.2,0.1721224]
[1724122857947,2.48,2659.4,2659.3,0.17205353]
[1724122858355,2.48,2659.4,2658.9,3.76087]
[1724122858652,2.48,2659.4,2659.3,0.17205353]
[1724122858806,2.297,2659.3,2658.9,3.76087]
[1724122860860,2.297,2659.3,2658.9,7.52173]
[1724122861066,2.297,2659.3,2658.9,7.52174]
[1724122861368,2.297,2659.3,2658.9,7.52173]
[1724122862826,2.297,2659.3,2658.9,3.76086]
[1724122863276,2.297,2659.3,2658.9,5.002146]
[1724122863429,2.297,2659.3,2659.0,3.7608]
[1724122866307,2.297,2659.3,2659.1,0.17219129]
[1724122866709,2.297,2659.3,2658.9,3.76086]
[1724122866942,2.297,2659.3,2659.0,0.17226017]
[1724122869734,2.297,2659.3,2659.0,3.93304017]
[1724122873290,2.297,2659.3,2659.0,0.17226017]
[1724122874662,6.47751609,2659.3,2659.0,0.17226017]
[1724122874917,2.3324,2659.1,2658.7,14.90227]
[1724122875209,2.3324,2659.1,2658.8,0.17233385]
[1724122875704,3.76095,2658.9,2658.8,0.17233385]
[1724122875857,2.4679,2658.9,2658.8,0.17233385]
[1724122876060,2.4679,2658.9,2658.4,3.76164]
[1724122876257,2.4679,2658.9,2658.8,0.17233385]
[1724122876690,2.4679,2658.9,2658.5,3.7615]
[1724122876995,2.4679,2658.9,2658.7,3.76112]
[1724122877399,2.4679,2658.9,2658.8,0.17245194]
[1724122877599,2.4895,2659.2,2658.8,3.93352194]
[1724122878860,2.4895,2659.2,2658.9,3.76086]
[1724122879067,2.4895,2659.2,2658.9,5.20528694]
[1724122879468,2.4895,2659.2,2658.9,5.20527694]
[1724122879662,2.4895,2659.2,2658.9,3.93327694]
[1724122880064,2.4895,2659.2,2658.9,7.69414694]
[1724122880463,2.4895,2659.2,2658.9,3.93327694]
[1724122883225,2.4895,2659.2,2659.0,3.7608]
[1724122883510,2.4895,2659.2,2659.0,0.17235804]
[1724122884176,2.4895,2659.2,2659.0,3.93314804]
[1724122887385,2.4895,2659.2,2659.0,0.17235804]
[1724122889475,2.4838591,2659.2,2659.0,3.93313804]
[1724122889671,2.4838591,2659.2,2659.0,4.70255884]
[1724122889986,7.52006,2659.6,2659.0,4.70255884]
[1724122890192,7.52006,2659.6,2659.0,3.93313804]
[1724122890391,3.7601,2659.5,2659.0,3.93313804]
[1724122892024,3.7601,2659.5,2659.0,0.17235804]
[1724122892522,2.3968,2659.4,2659.0,0.17235804]
[1724122893577,2.3968,2659.4,2659.1,0.17217782]
[1724122893819,3.38849,2659.4,2658.9,5.03289]
[1724122893979,7.14873,2659.4,2659.2,0.17199757]
[1724122894178,7.14873,2659.4,2658.9,3.76089]
[1724122894516,7.14873,2659.4,2659.0,0.17213534]
[1724122894923,2.4001,2659.3,2659.0,0.17213534]
[1724122895100,3.115303,2659.3,2658.8,3.76098]
[1724122895296,2.4001,2659.3,2659.1,0.17206645]
[1724122895501,2.4001,2659.3,2658.8,7.52198]
[1724122895723,2.4001,2659.3,2659.2,0.17199757]
[1724122895896,2.4001,2659.3,2658.8,7.52198]
[1724122896100,2.4001,2659.3,2659.2,0.17199757]
[1724122896305,3.016134,2659.3,2658.8,7.52198]
[1724122896486,2.4001,2659.3,2659.2,0.17199757]
[1724122897026,2.4001,2659.3,2658.8,7.52198]
[1724122897229,2.4001,2659.3,2659.2,0.17199757]
[1724122897402,2.4001,2659.3,2658.9,3.76093]
[1724122897602,2.4001,2659.3,2659.2,0.17199757]
[1724122897828,3.016134,2659.3,2658.9,3.76093]
[1724122897983,3.016134,2659.3,2659.2,0.17199757]
[1724122898187,3.016134,2659.3,2658.9,3.76093]
[1724122898423,3.016134,2659.3,2659.2,0.17199757]
[1724122898644,3.016134,2659.3,2658.9,3.76093]
[1724122898944,3.016134,2659.3,2659.2,0.17199757]
[1724122899091,3.016134,2659.3,2658.9,3.76095]
[1724122899290,3.016134,2659.3,2659.2,0.17199757]
[1724122899516,3.016134,2659.3,2658.9,3.76095]
[1724122899702,3.016134,2659.3,2659.2,0.17199757]
[1724122899902,3.016134,2659.3,2658.9,3.76095]
[1724122900122,2.4001,2659.3,2659.2,0.17199757]
[1724122900723,2.4001,2659.3,2658.9,3.76095]
[1724122901234,2.4001,2659.3,2659.0,0.17213534]
[1724122904229,6.16048,2659.3,2659.0,0.17213534]
[1724122904541,2.4001,2659.3,2659.0,0.17213534]
[1724122906304,3.76053,2659.2,2659.0,0.17213534]
[1724122906511,6.06857,2659.1,2659.0,0.17213534]
[1724122906711,2.3079,2659.0,2658.6,4.57581673]
[1724122906922,2.3079,2659.0,2658.6,3.76136]
[1724122911246,2.3079,2659.0,2658.5,7.96965778]
[1724122911465,2.4075,2658.6,2658.5,0.58965778]
[1724122911667,2.4075,2658.6,2658.3,12.26]
[1724122912964,2.4075,2658.6,2658.3,16.02178]
[1724122913176,2.4075,2658.6,2658.3,19.7835]
[1724122913406,2.4075,2658.6,2658.3,16.02172]
[1724122915080,2.4075,2658.6,2658.3,19.78345]
[1724122915283,6.03193,2659.0,2658.5,3.76148]
[1724122915430,6.03193,2659.0,2658.5,3.76144]
[1724122916530,6.03192,2659.0,2658.5,3.76144]
[1724122917166,9.79284,2659.0,2658.5,3.76144]
[1724122917327,6.03192,2659.0,2658.5,3.76144]
[1724122917529,6.03189,2659.0,2658.5,3.76144]
[1724122917778,9.7928,2659.0,2658.5,3.76144]
[1724122917945,2.3233,2658.9,2658.5,3.76144]
[1724122918470,2.3233,2658.9,2658.5,4.72328903]
[1724122919707,2.3233,2658.9,2658.5,8.48472903]
[1724122919878,2.3233,2658.9,2658.6,3.76137]
[1724122923036,2.4286,2659.1,2658.8,3.76103]
[1724122923239,2.4286,2659.6,2659.0,3.76073]
[1724122923522,3.75983,2659.7,2659.0,3.76073]
[1724122923523,2.4286,2659.4,2659.0,3.76073]
[1724122926394,2.4286,2659.4,2659.1,0.17231278]
[1724122927634,2.4927,2659.4,2659.1,0.17231278]
[1724122929591,6.25297,2659.4,2659.1,0.17231278]
[1724122929791,6.25297,2659.4,2658.8,7.52204]
[1724122929792,7.381478,2659.4,2658.8,7.52204]
[1724122930042,2.3041,2659.3,2658.9,0.17245055]
[1724122930221,6.06452,2659.3,2658.9,0.17245055]
[1724122930411,2.3041,2659.2,2658.9,0.17245055]
[1724122932049,3.76042,2659.3,2658.9,0.17245055]
[1724122933023,2.3777,2659.2,2658.9,0.17245055]
[1724122936654,3.76042,2659.3,2658.9,0.17245055]
[1724122937842,3.76042,2659.3,2658.9,3.93339055]
[1724122938251,4.870483,2659.3,2658.9,0.17245055]
[1724122938406,3.76067,2659.1,2658.6,11.14126]
[1724122938622,3.76067,2659.1,2658.7,0.17237239]
[1724122940683,2.3336,2659.2,2658.7,3.93360239]
[1724122940971,6.09416,2659.2,2658.7,3.93360239]
[1724122942179,2.3287,2659.1,2658.7,3.93360239]
[1724122950742,1.272,2659.0,2658.7,0.17237239]
[1724122950975,2.3988,2658.9,2658.7,0.17237239]
[1724122951179,2.3988,2658.9,2658.5,3.76143]
[1724122951376,2.3988,2658.9,2658.8,0.17236758]
[1724122951592,2.3988,2658.9,2658.5,3.76143]
[1724122951893,2.3988,2658.9,2658.6,0.17250539]
[1724122953512,2.3644,2659.2,2658.8,3.76109]
[1724122953840,2.3644,2659.2,2658.9,0.17238642]
[1724122956788,2.3644,2659.2,2658.7,3.76117]
[1724122957477,2.3644,2659.2,2658.8,0.17245531]
[1724122958001,6.12497,2659.2,2658.8,0.17245531]
[1724122958165,6.864643,2659.2,2658.8,0.17245531]
[1724122964306,10.625263,2659.2,2658.8,0.17245531]
[1724122964486,10.625283,2659.2,2658.8,0.17245531]
[1724122965004,2.3134,2659.1,2658.8,0.17245531]
[1724122965169,3.4980283,2659.1,2658.8,0.17245531]
[1724122965803,7.2588083,2659.1,2658.8,0.17245531]
[1724122966007,6.14085,2658.9,2658.8,0.17245531]
[1724122966203,6.14085,2658.9,2658.3,3.76178]
[1724122966204,3.76121,2658.8,2658.3,3.76178]
[1724122968609,3.76121,2658.8,2658.3,3.76172]
[1724122969052,3.76121,2658.8,2658.3,7.52345]
[1724122969544,2.3799,2658.9,2658.4,3.76165]
[1724122969929,6.14085,2658.9,2658.4,3.76165]
[1724122970347,9.90189,2658.9,2658.3,3.76172]
[1724122971263,6.14085,2658.9,2658.3,3.7617]
[1724122971570,7.00059783,2658.9,2658.4,0.17274784]
[1724122972066,3.76111,2658.8,2658.4,0.17274784]
[1724122977221,2.2631,2658.7,2658.4,0.17274784]
[1724122980428,3.76139,2658.6,2658.4,0.17274784]
[1724122980629,6.01631,2658.5,2658.4,0.17274784]
[1724122980808,2.2548,2658.4,2658.0,3.76222]
[1724122981134,6.01663,2658.3,2657.9,7.96975553]
[1724122981289,2.2548,2658.1,2657.9,7.38]
[1724122982238,2.2548,2658.1,2657.9,11.14234]
[1724122983186,2.2548,2658.1,2657.9,7.38]
[1724122985738,3.76222,2658.0,2657.9,7.38]
[1724122985937,2.4059,2657.9,2657.6,20.47990036]
[1724122986240,2.4059,2657.9,2657.6,19.89]
[1724122986584,2.4059,2657.9,2657.7,0.17349702]
[1724122986987,2.4059,2657.8,2657.7,0.17349702]
[1724122987187,6.16841,2657.8,2657.7,0.17349702]
[1724122987444,7.52509,2657.8,2657.3,3.76312]
[1724122987741,3.76251,2657.8,2657.1,4.58021839]
[1724122988036,3.76251,2657.8,2656.9,4.26414658]
[1724122988037,3.76297,2657.5,2657.4,0.17370391]
[1724122988200,6.15607,2657.5,2656.9,7.52736]
[1724122988405,6.15607,2657.5,2657.4,0.17370391]
[1724122988598,6.15607,2657.5,2656.9,3.76367]
[1724122988798,7.42807,2657.5,2657.4,0.17370391]
[1724122989004,6.15607,2657.5,2656.9,3.76367]
[1724122989236,2.3931,2657.5,2657.4,0.17370391]
[1724122989435,2.3931,2657.5,2656.9,3.76367]
[1724122989636,2.3931,2657.5,2657.4,0.17431167]
[1724122989834,6.898953,2657.5,2656.9,3.76367]
[1724122990135,3.76309,2657.4,2656.9,3.76367]
[1724122990284,2.3067,2657.3,2657.0,0.17459773]
[1724122990490,2.3067,2657.3,2656.8,3.76391]
[1724122990691,2.3067,2657.3,2657.1,0.17452874]
[1724122990927,2.3067,2657.3,2656.8,3.76391]
[1724122991126,2.3067,2657.3,2657.2,0.17445976]
[1724122991394,6.804219,2657.3,2656.7,3.76398]
[1724122991703,6.07004,2657.3,2656.7,3.76397]
[1724122991908,6.07004,2657.3,2656.8,3.93865573]
[1724122992105,2.3067,2657.3,2656.8,3.93865573]
[1724122992308,2.3067,2657.3,2657.0,3.76363]
[1724122992749,2.3067,2657.3,2657.1,0.17452874]
[1724122993593,2.3067,2657.3,2656.9,3.76378]
[1724122993828,2.3067,2657.3,2657.2,0.17454421]
[1724122994002,2.3067,2657.3,2656.9,3.76378]
[1724122994208,2.3067,2657.3,2657.2,0.17454421]
[1724122994438,2.3067,2657.3,2656.9,3.76378]
[1724122994749,2.3067,2657.3,2656.8,3.76382]
[1724122994903,2.3067,2657.3,2657.0,0.17468218]
[1724122995130,2.3067,2657.3,2656.9,3.76377]
[1724122995331,2.3067,2657.3,2657.1,0.17459968]
[1724122995547,2.3067,2657.3,2657.0,3.93827867]
[1724122995874,2.3067,2657.3,2657.1,0.17459968]
[1724122996675,2.3451,2657.5,2657.1,5.03549]
[1724122996975,2.3451,2657.5,2657.2,0.1745307]
[1724122997878,6.10803,2657.5,2657.2,0.1745307]
[1724122998081,3.33219,2657.4,2656.9,8.79944]
[1724122998232,3.33219,2657.4,2657.3,0.17442118]
[1724122998578,7.09526,2657.4,2656.9,5.03571]
[1724122998777,7.09526,2657.4,2657.3,0.17442118]
[1724122998933,7.09526,2657.4,2656.9,3.76371]
[1724122999133,7.18706,2657.4,2657.3,0.17442118]
[1724122999437,7.18706,2657.4,2656.7,5.03593]
[1724122999438,2.3569,2657.3,2656.7,5.03593]
[1724122999781,2.3569,2657.1,2656.7,3.76393]
[1724122999943,6.1204,2657.1,2656.5,9.39049859]
[1724123000479,6.1204,2657.1,2656.6,3.76418]
[1724123001546,2.3569,2657.1,2656.7,3.93885513]
[1724123001877,2.3569,2657.1,2656.8,3.76391]
[1724123002033,2.3569,2657.1,2656.8,3.93867613]
[1724123002678,2.3569,2657.1,2656.8,4.83616174]
[1724123002878,3.76302,2657.5,2656.8,4.83616174]
[1724123002879,2.2573,2657.4,2657.0,3.7635]
[1724123003253,2.2573,2657.4,2657.1,0.17467738]
[1724123006142,2.2573,2657.4,2657.1,3.93815738]
[1724123008244,2.2573,2657.4,2657.1,0.17467738]
[1724123008445,2.2573,2657.4,2656.9,5.03576]
[1724123008658,6.02038,2657.4,2656.9,5.03576]
[1724123008864,6.02038,2657.4,2657.0,0.1747869]
[1724123009086,2.4257,2657.2,2657.0,0.1747869]
[1724123009451,2.41629125,2657.2,2657.0,0.1747869]
[1724123017455,2.4617,2657.5,2657.1,3.7635]
[1724123017868,2.4617,2657.5,2657.2,0.17462526]
[1724123018770,2.4617,2657.3,2657.2,0.17462526]
[1724123018994,2.4617,2657.3,2656.9,3.76366]
[1724123019156,2.4617,2657.3,2657.2,0.17462526]
[1724123019357,2.4617,2657.3,2656.9,3.76366]
[1724123019558,6.22491,2657.3,2657.2,0.17462526]
[1724123019759,7.223711,2657.3,2656.9,0.81621668]
[1724123019959,2.4617,2657.3,2657.2,0.17462526]
[1724123020181,2.4617,2657.3,2656.9,3.76377]
[1724123020383,2.4617,2657.3,2657.2,0.17462526]
[1724123020573,2.4617,2657.3,2656.9,3.76377]
[1724123020774,2.4617,2657.3,2657.2,0.17462526]
[1724123021082,2.4617,2657.3,2656.9,3.76371]
[1724123021272,2.4617,2657.3,2657.2,0.17462526]
[1724123022470,2.4617,2657.3,2656.9,3.76371]
[1724123022671,2.4617,2657.3,2657.2,0.17462526]
[1724123022875,2.4617,2657.3,2656.9,7.5274]
[1724123023077,2.4617,2657.3,2656.9,3.7637]
[1724123023416,2.4617,2657.3,2657.0,0.17476324]
[1724123024387,6.22493,2657.3,2657.0,0.17476324]
[1724123024586,6.21299,2657.2,2656.6,1.272]
[1724123024795,6.21299,2657.2,2656.7,0.81638137]
[1724123024796,2.4496,2657.0,2656.7,0.81638137]
[1724123024958,2.4496,2657.0,2656.5,4.35428859]
[1724123025175,2.4496,2657.0,2656.6,4.58053043]
[1724123025380,2.4496,2657.0,2656.7,0.81639043]
[1724123025693,2.4496,2657.0,2656.6,3.76414]
[1724123025878,2.4496,2657.0,2656.7,0.816376]
[1724123026081,2.4496,2657.0,2656.8,0.81635394]
[1724123026277,2.4496,2657.0,2656.7,3.76406]
[1724123026474,2.4496,2657.0,2656.8,0.81630879]
[1724123026679,2.4496,2657.2,2656.8,1.272]
[1724123026881,2.4496,2657.7,2657.0,5.0356]
[1724123027192,9.21234,2657.7,2657.2,3.76332]
[1724123027723,3.7628,2657.6,2657.1,0.58517858]
[1724123028300,2.3623,2657.5,2657.1,0.58517858]
[1724123029421,2.3623,2657.5,2657.0,3.76353]
[1724123029581,2.4318,2657.4,2657.0,3.76353]
[1724123029787,2.4318,2657.3,2656.7,3.76397]
[1724123029986,2.3896,2657.2,2656.8,0.81629637]
[1724123030282,2.3896,2657.2,2656.7,7.52795]
[1724123030517,2.3896,2657.2,2656.8,0.81634939]
[1724123030723,2.3896,2657.2,2656.7,3.76397]
[1724123030882,2.3896,2657.2,2656.8,0.81635692]
[1724123031079,2.3896,2657.2,2656.7,7.52795]
[1724123031429,2.3896,2657.2,2656.8,0.17492152]
[1724123031588,3.50839,2657.2,2656.8,0.17492152]
[1724123032122,2.3896,2657.1,2656.8,0.17492152]
[1724123032624,2.3896,2657.5,2656.9,1.272]
[1724123032858,2.3896,2657.5,2657.1,5.03541]
[1724123033166,2.3896,2657.5,2657.2,0.67823047]
[1724123033463,2.3896,2657.5,2657.2,0.17468947]
[1724123037568,6.15253,2657.5,2657.2,0.17468947]
[1724123037772,2.3099,2657.4,2657.0,3.76364]
[1724123038073,2.3099,2657.4,2657.3,0.17462049]
[1724123038232,2.3099,2657.4,2657.0,3.76364]
[1724123038432,2.3099,2657.4,2657.3,0.17461373]
[1724123038954,2.3099,2657.4,2657.0,3.76364]
[1724123039271,6.07297,2657.4,2657.3,0.17461373]
[1724123039568,2.3521,2657.2,2656.7,7.5279]
[1724123039873,2.3521,2657.2,2656.8,3.76392]
[1724123041343,2.3521,2657.2,2656.9,3.76377]
[1724123041548,2.3521,2657.4,2656.9,3.76375]
[1724123041749,2.3521,2657.4,2657.1,3.76347]
[1724123041997,6.11475,2657.7,2657.1,3.76347]
[1724123042297,7.157485,2657.7,2657.0,3.76354]
[1724123042456,3.7628,2657.6,2657.1,3.76343]
[1724123046510,3.7628,2657.6,2657.2,0.1746827]
[1724123047465,2.4869,2657.5,2657.2,0.1746827]
[1724123047688,2.4869,2657.5,2657.2,3.9380327]
[1724123047888,2.4869,2657.5,2657.4,3.76307]
[1724123048088,2.3227,2657.8,2657.4,3.76307]
[1724123048303,2.3227,2657.8,2657.4,3.93757758]
[1724123052542,6.08523,2657.8,2657.4,0.17450758]
[1724123052707,3.76253,2657.8,2657.4,0.17450758]
[1724123052915,2.4088,2657.7,2657.4,0.17450758]
[1724123057256,6.17145,2657.7,2657.4,0.17450758]
[1724123057461,2.3199,2657.5,2657.4,0.17450758]
[1724123057760,2.3199,2657.5,2657.1,3.76349]
[1724123058112,2.3199,2657.5,2657.4,0.17450758]
[1724123058353,2.3199,2657.5,2657.1,3.76349]
[1724123058554,2.3199,2657.5,2657.4,0.17448732]
[1724123058755,7.2692245,2657.5,2657.4,0.17448732]
[1724123059116,2.301,2657.4,2656.8,3.76379]
[1724123059276,2.301,2657.4,2656.7,0.58998522]
[1724123059277,8.8006,2657.3,2656.7,0.58998522]
[1724123059429,2.301,2657.2,2656.7,0.58998522]
[1724123060343,2.301,2657.0,2656.7,0.58998522]
[1724123061425,2.301,2657.0,2656.8,0.17484043]
[1724123061774,3.76378,2656.9,2656.8,0.17484043]
[1724123061971,6.76273,2657.7,2657.1,3.76336]
[1724123062264,6.76273,2657.7,2656.9,1.274]
[1724123062265,2.326518,2657.7,2656.9,5.03771]
[1724123062470,3.76304,2657.5,2657.2,0.17464216]
[1724123062770,3.76304,2657.5,2656.9,3.76369]
[1724123062951,3.76304,2657.5,2657.3,0.17454616]
[1724123063152,3.76304,2657.5,2656.9,3.76368]
[1724123063469,3.76304,2657.5,2657.0,0.17475311]
[1724123063621,3.76309,2657.4,2657.0,0.17475311]
[1724123063827,3.76309,2657.4,2656.7,3.764]
[1724123064025,3.76328,2657.3,2657.1,0.17468412]
[1724123064625,7.52659,2657.3,2657.2,0.17461514]
[1724123064886,3.76361,2657.1,2656.6,0.59012078]
[1724123065058,3.76361,2657.1,2656.5,3.76428]
[1724123065059,2.2903,2657.0,2656.5,3.76428]
[1724123065242,2.2903,2657.0,2656.7,0.17496011]
[1724123065569,2.2903,2657.0,2656.5,3.76428]
[1724123065570,2.2903,2657.0,2656.8,0.17489111]
[1724123065746,2.2903,2657.0,2656.5,3.76428]
[1724123066070,2.2903,2657.0,2656.6,3.93920912]
[1724123066732,2.4988,2657.2,2656.7,7.52793]
[1724123066947,2.4988,2657.2,2656.8,0.17489111]
[1724123070600,6.26216,2657.2,2656.8,0.17489111]
[1724123071298,3.7635,2657.1,2656.8,0.17489111]
[1724123071600,4.766056,2657.1,2656.6,3.7642]
[1724123071921,4.766056,2657.1,2656.9,0.17482211]
[1724123072138,2.4964,2657.5,2657.0,3.76355]
[1724123072431,3.92190429,2658.5,2657.0,3.76355]
[1724123072432,2.4964,2657.7,2657.4,3.76298]
[1724123073003,2.4964,2657.7,2657.5,0.17464472]
[1724123073417,2.4964,2657.7,2657.5,0.56840719]
[1724123073627,2.4964,2657.9,2657.5,0.56840719]
[1724123073902,3.76153,2658.5,2657.7,3.76252]
[1724123073903,2.4964,2658.2,2657.7,3.76252]
[1724123074412,2.4964,2658.2,2657.8,0.17431283]
[1724123074568,2.4964,2658.2,2657.7,3.76252]
[1724123074762,2.4964,2658.2,2657.9,0.17424388]
[1724123075077,2.4964,2658.2,2657.7,3.76252]
[1724123075282,2.4964,2658.2,2658.0,0.17417494]
[1724123075590,2.4964,2658.2,2657.7,3.76252]
[1724123075792,2.4964,2658.2,2658.1,0.174106]
[1724123075995,2.4964,2658.2,2657.7,3.76252]
[1724123076157,2.4964,2658.2,2658.1,0.174106]
[1724123076362,2.4964,2658.2,2657.7,3.76252]
[1724123076669,2.4964,2658.2,2657.8,0.17431283]
[1724123076870,3.12222,2658.2,2657.8,0.17431283]
[1724123077177,3.12222,2658.2,2657.9,0.17424388]
[1724123077393,6.88418,2658.2,2657.5,4.15659247]
[1724123077603,6.25836,2658.2,2658.0,0.17417494]
[1724123077921,6.25836,2658.2,2657.5,4.15659247]
[1724123078122,6.25836,2658.2,2658.1,0.174106]
[1724123078298,6.25836,2658.2,2657.5,4.15659247]
[1724123078497,6.25836,2658.2,2658.1,0.174106]
[1724123078820,7.260376,2658.2,2658.1,0.174106]
[1724123078993,7.260376,2658.2,2657.5,3.76283]
[1724123079199,6.25836,2658.2,2658.1,0.174106]
[1724123079422,6.25836,2658.2,2657.5,7.52564]
[1724123079583,6.25836,2658.2,2658.1,0.174106]
[1724123079783,6.25836,2658.2,2657.5,3.76281]
[1724123079983,6.25836,2658.2,2658.1,0.174106]
[1724123080183,7.260376,2658.2,2657.5,7.52564]
[1724123080383,6.25836,2658.2,2658.1,0.174106]
[1724123080627,6.25836,2658.2,2657.5,7.52564]
[1724123080823,6.25836,2658.2,2658.1,0.174106]
[1724123081040,6.25836,2658.2,2657.5,7.52564]
[1724123081332,6.25836,2658.2,2658.1,0.174106]
[1724123081658,7.260376,2658.2,2658.1,0.174106]
[1724123081789,7.260376,2658.2,2657.6,3.76278]
[1724123081983,6.25836,2658.2,2658.1,0.174106]
[1724123082297,6.25836,2658.2,2657.6,3.76278]
[1724123082489,6.25836,2658.2,2658.1,0.174106]
[1724123082690,6.25836,2658.2,2657.6,3.76278]
[1724123082923,6.25836,2658.2,2658.1,0.174106]
[1724123083114,6.25836,2658.2,2657.6,3.76278]
[1724123083115,7.260376,2658.2,2657.6,3.76278]
[1724123083382,6.25836,2658.2,2657.6,3.76278]
[1724123083613,6.25836,2658.2,2657.7,0.17438178]
[1724123083812,3.76208,2658.1,2657.7,0.17438178]
[1724123084008,7.52425,2658.1,2657.5,3.76281]
[1724123084222,2.4626,2658.0,2657.8,0.17400206]
[1724123084422,3.76237,2657.9,2657.3,3.76312]
[1724123084827,3.76237,2657.9,2657.3,7.52626]
[1724123085737,2.3394,2657.8,2657.3,3.76312]
[1724123086023,2.949577,2657.8,2657.3,3.76312]
[1724123087125,6.712107,2657.8,2657.3,3.76312]
[1724123087301,6.712087,2657.8,2657.3,3.76312]
[1724123088332,2.949577,2657.8,2657.3,7.52625]
[1724123088491,2.3394,2657.8,2657.4,3.76306]
[1724123089277,2.3394,2657.8,2657.3,7.52626]
[1724123089828,2.3394,2657.8,2657.4,3.76306]
[1724123091427,2.3394,2657.8,2657.5,0.17420894]
[1724123092939,6.10193,2657.8,2657.3,3.76312]
[1724123093145,7.08836,2657.8,2657.4,0.17427791]
[1724123093771,3.32583,2657.8,2657.4,0.17427791]
[1724123094079,2.3394,2657.8,2657.4,3.93727791]
[1724123094446,2.3394,2657.8,2657.4,0.17427791]
[1724123094882,6.10191,2657.8,2657.4,0.17427791]
[1724123095259,2.3394,2657.8,2657.4,0.17427791]
[1724123095562,2.3394,2657.8,2657.4,3.93729791]
[1724123096287,6.10192,2657.8,2657.4,0.17427791]
[1724123096584,6.10192,2657.8,2657.2,3.76322]
[1724123096585,7.088356,2657.8,2657.3,3.76317]
[1724123096738,6.10192,2657.8,2657.5,0.17420894]
[1724123096942,6.10192,2657.8,2657.4,3.76307]
[1724123097184,6.10192,2657.8,2657.5,0.17420894]
[1724123098288,6.10192,2657.8,2657.3,3.76314]
[1724123098798,6.10192,2657.8,2657.4,0.17427791]
[1724123101451,2.3394,2657.8,2657.4,3.93731791]
[1724123102096,6.10191,2657.8,2657.4,0.17427791]
[1724123102867,4.748924,2657.8,2657.4,0.17427791]
[1724123103065,11.17776,2657.5,2657.4,0.17427791]
[1724123103300,2.3779,2657.7,2657.2,3.76335]
[1724123103481,2.3779,2657.7,2657.4,0.17432857]
[1724123103667,2.3779,2657.7,2657.3,3.93759755]
[1724123104007,2.3779,2657.7,2657.4,0.17422048]